bitfinex/quotes_SOLUSD_20240703
["timestamp","ask_amount","ask_price","bid_price","bid_amount"]
[1720012960967,7.450938,143.78,143.68,16.3822]
[1720012960968,16.32,143.77,143.72,16.32]
[1720012961169,0.833238,143.78,143.73,16.32]
[1720012961353,17.153238,143.78,143.73,16.32]
[1720012961661,17.153238,143.78,143.72,16.32]
[1720012961858,17.153238,143.78,143.73,16.32]
[1720012963537,0.833238,143.78,143.73,16.32]
[1720012963735,0.833238,143.78,143.68,16.3822]
[1720012964056,0.833238,143.78,143.68,48.9922]
[1720012965863,0.17,143.77,143.68,16.3822]
[1720012966037,0.34,143.77,143.68,16.3822]
[1720012967042,0.34,143.77,143.65,21.4058]
[1720012970475,0.34,143.77,143.65,15.1458]
[1720012970476,6.2871,143.76,143.65,15.1458]
[1720012970775,20.34,143.75,143.65,15.1458]
[1720012973775,20.34,143.75,143.62,6.0844]
[1720012973950,32.61,143.72,143.58,6.4784]
[1720012974157,20.34,143.71,143.58,6.4784]
[1720012974373,20.34,143.71,143.57,16.0718]
[1720012974374,32.61,143.69,143.57,16.0718]
[1720012974584,20.34,143.68,143.57,16.0718]
[1720012977163,20.34,143.68,143.54,21.8526]
[1720012980148,6.085,143.67,143.54,21.8526]
[1720012980359,20.34,143.66,143.54,21.8526]
[1720012981583,6.085,143.67,143.56,32.61]
[1720012981876,6.085,143.67,143.59,32.61]
[1720012982363,6.085,143.67,143.6,1.39245296]
[1720012982556,6.085,143.67,143.61,1.39248246]
[1720012982755,6.085,143.67,143.59,32.61]
[1720012983277,0.17,143.66,143.59,32.61]
[1720012983771,0.17,143.66,143.56,32.61]
[1720012983984,6.085,143.67,143.59,32.61]
[1720012984552,6.085,143.67,143.55,30.0]
[1720012984754,6.085,143.67,143.57,32.61]
[1720012985760,0.17,143.66,143.57,32.61]
[1720012986178,0.17,143.66,143.55,30.0]
[1720012986351,0.34,143.66,143.56,32.61]
[1720012986687,0.17,143.66,143.56,32.61]
[1720012987300,6.085,143.67,143.59,32.61]
[1720012987778,6.107,143.72,143.59,15.2893]
[1720012987980,6.107,143.72,143.54,11.44073355]
[1720012987981,6.107,143.72,143.6,32.61]
[1720012988154,6.107,143.72,143.55,46.3604]
[1720012988474,6.107,143.72,143.58,32.61]
[1720012989079,6.2428,143.7,143.58,32.61]
[1720012989284,20.34,143.69,143.58,32.61]
[1720012989985,20.34,143.69,143.55,16.3604]
[1720012990149,20.34,143.69,143.56,32.61]
[1720012990354,6.2428,143.7,143.57,32.61]
[1720012990585,6.2428,143.7,143.61,32.61]
[1720012992877,0.17,143.69,143.61,32.61]
[1720012994081,0.34,143.69,143.61,32.61]
[1720012994873,0.17,143.69,143.61,32.61]
[1720012995194,0.17,143.69,143.57,32.61]
[1720012995487,0.34,143.69,143.57,32.61]
[1720012997579,20.34,143.69,143.57,32.61]
[1720012998766,0.17,143.69,143.57,32.61]
[1720012998974,0.17,143.69,143.58,1.39221754]
[1720012999193,6.2428,143.7,143.61,32.61]
[1720012999491,6.2428,143.7,143.64,32.61]
[1720012999870,6.1764,143.75,143.64,32.61]
[1720013000390,6.1764,143.75,143.65,1.3918313]
[1720013002413,0.34,143.74,143.64,32.61]
[1720013002583,20.34,143.74,143.64,32.61]
[1720013002902,20.34,143.74,143.57,38.24874121]
[1720013002903,6.037,143.73,143.57,21.45864121]
[1720013003204,6.037,143.73,143.58,30.0]
[1720013003205,38.647,143.71,143.58,30.0]
[1720013003394,0.17,143.7,143.56,32.61]
[1720013003594,20.34,143.7,143.56,32.61]
[1720013003775,6.2677,143.69,143.56,32.61]
[1720013003975,20.34,143.7,143.54,32.61]
[1720013003976,6.2677,143.67,143.54,32.61]
[1720013004292,20.34,143.66,143.53,5.61107329]
[1720013004600,20.34,143.66,143.52,32.61]
[1720013005299,52.95,143.66,143.52,32.61]
[1720013005485,6.628,143.65,143.5,6.3792]
[1720013005801,20.34,143.64,143.52,32.61]
[1720013008314,6.036,143.63,143.52,32.61]
[1720013008484,20.34,143.62,143.52,32.61]
[1720013009008,20.34,143.62,143.5,5.51510474]
[1720013009172,20.34,143.62,143.49,49.1266]
[1720013009173,20.34,143.62,143.49,32.61]
[1720013009799,6.1753,143.61,143.49,32.61]
[1720013010002,6.1753,143.61,143.47,32.61]
[1720013010003,20.34,143.6,143.47,32.61]
[1720013010198,20.34,143.6,143.47,62.61]
[1720013010573,6.1131,143.59,143.47,30.0]
[1720013010788,52.95,143.58,143.47,30.0]
[1720013011305,52.95,143.58,143.44,32.61]
[1720013011489,6.3293,143.57,143.44,32.61]
[1720013011693,20.34,143.56,143.44,32.61]
[1720013012088,20.34,143.56,143.45,1.39381292]
[1720013013204,20.34,143.56,143.44,32.61]
[1720013014011,6.1867,143.55,143.44,32.61]
[1720013014187,20.34,143.54,143.43,5.6855124]
[1720013014389,20.34,143.54,143.45,1.39389863]
[1720013014590,20.34,143.54,143.41,32.61]
[1720013020413,32.61,143.51,143.38,16.4782]
[1720013020611,20.34,143.5,143.37,32.61]
[1720013020818,6.1461,143.49,143.37,38.22453015]
[1720013020990,0.17,143.48,143.37,38.22453015]
[1720013021493,20.34,143.48,143.37,38.22453015]
[1720013021689,20.34,143.48,143.37,5.61453015]
[1720013021926,52.95,143.48,143.33,6.2584]
[1720013022216,6.5497,143.47,143.34,30.0]
[1720013022417,20.34,143.46,143.34,30.0]
[1720013022789,20.34,143.46,143.32,213.12166543]
[1720013022790,20.34,143.46,143.31,48.4437]
[1720013023122,20.34,143.46,143.31,53.95867835]
[1720013023811,32.61,143.45,143.31,53.95867835]
[1720013024010,20.34,143.44,143.31,53.95867835]
[1720013024198,6.5397,143.43,143.31,53.95867835]
[1720013024526,0.34,143.42,143.29,33.443238]
[1720013024706,20.34,143.42,143.29,33.443238]
[1720013025504,20.34,143.42,143.34,6.9761]
[1720013025812,20.34,143.42,143.29,39.09873251]
[1720013026130,20.34,143.42,143.32,6.977]
[1720013026598,6.1849,143.41,143.32,6.977]
[1720013026802,20.34,143.4,143.31,6.9777]
[1720013027019,52.95,143.4,143.3,6.9782]
[1720013027721,52.95,143.4,143.33,6.9768]
[1720013028109,20.34,143.4,143.33,6.9768]
[1720013028311,20.0,143.4,143.35,6.9755]
[1720013028624,6.1849,143.41,143.34,6.9763]
[1720013028824,6.1849,143.41,143.29,33.443238]
[1720013029013,6.1849,143.41,143.33,6.9767]
[1720013029211,6.1849,143.41,143.29,33.443238]
[1720013029212,6.1849,143.41,143.34,6.9764]
[1720013029805,0.17,143.4,143.34,6.9764]
[1720013030006,0.34,143.4,143.34,6.9764]
[1720013030713,0.34,143.4,143.33,6.9767]
[1720013031302,0.34,143.4,143.34,6.9761]
[1720013031525,6.1849,143.41,143.35,6.9757]
[1720013031722,6.1849,143.41,143.34,6.9762]
[1720013032520,6.1849,143.41,143.32,6.9772]
[1720013032709,0.34,143.4,143.32,6.9772]
[1720013034136,0.34,143.4,143.34,6.9763]
[1720013034342,6.1849,143.41,143.37,6.9746]
[1720013034509,6.71290312,143.48,143.37,6.9746]
[1720013034510,6.6519,143.48,143.43,6.9719]
[1720013034849,6.6519,143.58,143.42,32.61]
[1720013035042,7.26417051,143.55,143.48,6.9692]
[1720013035207,6.6519,143.64,143.53,6.9669]
[1720013035403,6.6519,143.64,143.5,32.61]
[1720013035404,7.26164146,143.6,143.5,32.61]
[1720013035626,6.6519,143.64,143.54,6.9664]
[1720013035837,6.6519,143.64,143.49,0.17]
[1720013036326,6.6519,143.64,143.48,15.4933]
[1720013038008,6.6519,143.64,143.48,21.10503665]
[1720013038209,0.17,143.63,143.48,21.10503665]
[1720013038511,20.34,143.63,143.43,59.1701]
[1720013038711,20.34,143.63,143.44,20.0]
[1720013040034,20.34,143.63,143.45,0.34]
[1720013040337,20.34,143.63,143.45,0.17]
[1720013041030,20.34,143.63,143.44,20.0]
[1720013042360,20.34,143.63,143.45,0.17]
[1720013042919,6.6519,143.64,143.45,0.34]
[1720013044223,20.0,143.63,143.45,0.34]
[1720013045329,0.34,143.62,143.45,0.34]
[1720013045636,0.34,143.62,143.45,0.17]
[1720013046335,7.27097421,143.61,143.45,0.34]
[1720013046636,20.34,143.6,143.45,0.34]
[1720013047025,20.34,143.6,143.44,20.0]
[1720013047233,6.4531,143.59,143.43,58.44346353]
[1720013047444,20.34,143.58,143.43,5.66946353]
[1720013047743,20.34,143.58,143.42,213.12166543]
[1720013049922,20.34,143.58,143.42,218.77057581]
[1720013050359,20.0,143.58,143.43,0.17]
[1720013050644,6.4531,143.59,143.44,57.7]
[1720013050849,6.4531,143.59,143.45,0.34]
[1720013051423,6.4531,143.59,143.46,20.94]
[1720013051643,6.4531,143.59,143.47,0.34]
[1720013052551,6.593,143.63,143.49,20.94]
[1720013052719,6.593,143.63,143.5,0.34]
[1720013052917,6.593,143.63,143.53,36.76]
[1720013053130,6.593,143.63,143.53,57.7]
[1720013053347,6.5683,143.77,143.54,0.34]
[1720013053642,6.4787,143.7,143.54,0.34]
[1720013053858,6.4787,143.7,143.54,21.11]
[1720013054042,6.4787,143.7,143.55,0.17]
[1720013054228,6.4787,143.7,143.55,36.93]
[1720013054424,6.4787,143.7,143.56,0.17]
[1720013054722,6.4787,143.7,143.55,36.76]
[1720013054932,6.4787,143.7,143.53,213.12166543]
[1720013055131,6.4787,143.7,143.54,1.56230271]
[1720013055346,6.4787,143.7,143.55,1.39220571]
[1720013055555,6.4787,143.7,143.53,250.05166543]
[1720013055724,6.4787,143.7,143.53,255.74540232]
[1720013055927,20.0,143.69,143.53,255.74540232]
[1720013056125,20.0,143.69,143.53,255.57540232]
[1720013056343,0.34,143.68,143.53,218.81540232]
[1720013057851,0.34,143.68,143.54,0.17]
[1720013058056,0.17,143.68,143.54,0.34]
[1720013058826,0.17,143.68,143.54,0.17]
[1720013059247,0.17,143.68,143.53,255.57540232]
[1720013059460,0.34,143.68,143.53,218.81540232]
[1720013059662,0.34,143.68,143.54,1.39274954]
[1720013059838,0.34,143.68,143.53,218.81540232]
[1720013063355,0.34,143.68,143.54,0.17]
[1720013063526,0.34,143.68,143.53,218.81540232]
[1720013064238,0.34,143.68,143.53,5.69373689]
[1720013064534,0.34,143.68,143.49,290.82166543]
[1720013064749,0.34,143.68,143.5,0.34]
[1720013064938,6.5136,143.67,143.49,269.88166543]
[1720013065122,0.34,143.68,143.49,238.71836839]
[1720013065123,6.5136,143.65,143.49,238.71836839]
[1720013065327,6.5136,143.63,143.49,238.71836839]
[1720013065557,20.34,143.62,143.49,20.0]
[1720013066451,6.5189,143.61,143.44,249.88166543]
[1720013066654,20.34,143.6,143.44,249.88166543]
[1720013067458,6.4622,143.59,143.44,218.73552947]
[1720013067757,6.4622,143.57,143.44,213.12166543]
[1720013067948,6.4622,143.57,143.37,213.12166543]
[1720013068148,6.5449,143.55,143.37,213.12166543]
[1720013068453,20.34,143.54,143.37,213.12166543]
[1720013069556,6.1469,143.53,143.37,213.12166543]
[1720013069865,20.34,143.52,143.37,213.12166543]
[1720013072345,6.5203,143.51,143.37,213.12166543]
[1720013072549,20.34,143.5,143.36,5.56331905]
[1720013072855,6.5203,143.51,143.35,100.0]
[1720013073059,6.5203,143.51,143.38,6.3997]
[1720013073265,6.5203,143.51,143.38,122.3061]
[1720013073465,6.5203,143.51,143.39,20.94]
[1720013073773,6.5203,143.51,143.4,0.17]
[1720013073942,6.5203,143.51,143.4,0.34]
[1720013074838,6.5203,143.51,143.39,0.34]
[1720013075938,6.5203,143.51,143.4,20.94]
[1720013076133,6.5203,143.51,143.41,0.34]
[1720013076364,6.5203,143.51,143.41,141.28]
[1720013077537,6.5203,143.51,143.41,20.34]
[1720013077741,6.5203,143.51,143.41,0.34]
[1720013078256,6.5203,143.51,143.4,20.0]
[1720013078453,6.5203,143.51,143.38,64.67586386]
[1720013080051,6.5203,143.51,143.38,21.51616386]
[1720013081153,6.5203,143.51,143.39,0.17]
[1720013081857,0.34,143.5,143.38,5.60976386]
[1720013082062,0.34,143.5,143.34,85.391163]
[1720013082252,0.34,143.5,143.34,48.631163]
[1720013083165,0.34,143.5,143.35,20.0]
[1720013083373,20.34,143.5,143.34,26.56464238]
[1720013083573,20.34,143.5,143.34,5.62464238]
[1720013083773,20.34,143.5,143.33,16.032]
[1720013084545,6.2451,143.49,143.31,213.12166543]
[1720013084858,20.34,143.48,143.32,20.0]
[1720013085461,6.2451,143.47,143.32,20.0]
[1720013085770,20.34,143.46,143.31,218.76170287]
[1720013086449,6.2451,143.45,143.31,218.76170287]
[1720013086663,20.34,143.44,143.31,218.76170287]
[1720013088465,20.34,143.44,143.34,6.9763]
[1720013088670,20.34,143.44,143.33,6.9767]
[1720013088878,6.473,143.43,143.33,6.9767]
[1720013089041,20.17,143.42,143.33,6.9767]
[1720013089375,0.17,143.41,143.34,6.9763]
[1720013089550,0.17,143.41,143.33,6.9767]
[1720013091781,0.17,143.41,143.32,6.9773]
[1720013092066,0.17,143.41,143.31,6.9775]
[1720013092247,0.17,143.41,143.33,6.9768]
[1720013092758,6.473,143.43,143.29,0.833238]
[1720013092954,6.473,143.43,143.35,6.9755]
[1720013093148,6.473,143.43,143.29,0.833238]
[1720013093555,6.473,143.43,143.34,6.976]
[1720013094252,0.34,143.42,143.34,6.976]
[1720013094471,20.34,143.42,143.34,6.976]
[1720013096055,6.3933,143.41,143.29,0.833238]
[1720013096267,20.17,143.4,143.3,6.9783]
[1720013096549,20.34,143.4,143.29,0.833238]
[1720013096879,20.34,143.4,143.31,6.9778]
[1720013097373,20.34,143.4,143.29,0.833238]
[1720013097553,20.34,143.4,143.3,6.978]
[1720013097761,20.34,143.4,143.31,6.9778]
[1720013098779,20.34,143.4,143.32,6.9773]
[1720013098996,20.34,143.4,143.31,6.9777]
[1720013099780,20.34,143.4,143.31,6.9776]
[1720013099988,20.34,143.4,143.3,6.978]
[1720013100291,6.4551,143.39,143.29,0.833238]
[1720013100451,20.34,143.38,143.29,0.833238]
[1720013100780,6.4551,143.39,143.29,0.833238]
[1720013100990,6.4551,143.39,143.35,6.9755]
[1720013101155,6.4551,143.39,143.36,1.39463856]
[1720013101358,6.5724,143.45,143.3,22.3345496]
[1720013101563,6.5724,143.45,143.38,6.9741]
[1720013101902,6.5724,143.45,143.39,1.3944659]
[1720013102187,6.5724,143.45,143.31,0.34]
[1720013102355,6.5724,143.45,143.32,1.39446878]
[1720013102882,6.5724,143.45,143.29,37.593238]
[1720013103068,6.5724,143.45,143.3,20.34]
[1720013103560,6.5724,143.45,143.29,6.50688452]
[1720013103756,6.5724,143.45,143.3,120.94]
[1720013103958,6.5724,143.45,143.35,6.0173]
[1720013104159,36.76,143.57,143.36,1.39407535]
[1720013104365,7.28262755,143.54,143.37,57.7]
[1720013104568,20.956472,143.56,143.41,20.94]
[1720013104767,6.3997,143.56,143.42,1.73332994]
[1720013104961,6.3997,143.56,143.43,1.39333238]
[1720013105188,6.3997,143.56,143.44,0.34]
[1720013105374,6.3997,143.56,143.45,1.39330817]
[1720013105693,6.3997,143.56,143.44,0.34]
[1720013105694,6.3997,143.56,143.46,1.39321104]
[1720013106864,6.0103,143.61,143.47,21.28]
[1720013107063,6.0103,143.61,143.48,120.94]
[1720013107295,6.0103,143.61,143.49,1.08731501]
[1720013107475,6.0103,143.61,143.49,0.34]
[1720013110365,6.0103,143.61,143.49,58.04]
[1720013110585,6.0103,143.61,143.49,37.1]
[1720013111701,6.0103,143.61,143.49,0.17]
[1720013112001,6.0103,143.61,143.46,20.0]
[1720013112300,0.17,143.6,143.47,0.17]
[1720013112482,6.0103,143.61,143.46,0.17]
[1720013113076,6.0103,143.61,143.47,122.3328258]
[1720013113277,6.0103,143.61,143.48,0.34]
[1720013114300,6.0103,143.61,143.49,222.33273992]
[1720013114470,6.0103,143.61,143.5,0.34]
[1720013114787,6.0103,143.61,143.51,1.39259402]
[1720013115099,6.0103,143.61,143.52,1.39260781]
[1720013115274,6.0103,143.61,143.53,0.17]
[1720013115474,6.0103,143.61,143.54,1.39257309]
[1720013115675,6.0103,143.61,143.55,1.39247608]
[1720013116173,6.0103,143.61,143.5,36.93]
[1720013116398,6.0103,143.61,143.47,36.76]
[1720013116595,6.0103,143.61,143.48,30.0]
[1720013116802,0.34,143.6,143.48,30.0]
[1720013117094,0.34,143.6,143.47,42.47985119]
[1720013117286,0.17,143.6,143.47,42.47985119]
[1720013118102,0.17,143.6,143.47,49.75768719]
[1720013118403,0.34,143.6,143.47,5.71985119]
[1720013118578,0.34,143.6,143.44,6.3681]
[1720013118777,20.34,143.6,143.45,7.272562]
[1720013118973,20.34,143.6,143.46,0.43891094]
[1720013119585,20.34,143.6,143.45,7.272562]
[1720013120279,20.34,143.6,143.44,6.3681]
[1720013120280,6.6422,143.59,143.44,5.76545448]
[1720013120588,20.34,143.58,143.44,5.59545448]
[1720013120773,20.34,143.58,143.43,36.76]
[1720013121608,6.5259,143.57,143.37,100.0]
[1720013121771,6.6202,143.55,143.37,143.60101668]
[1720013121970,20.34,143.54,143.37,143.60101668]
[1720013122374,20.34,143.54,143.37,243.60101668]
[1720013123205,20.34,143.54,143.37,143.60101668]
[1720013123396,20.34,143.54,143.37,243.60101668]
[1720013124198,20.17,143.54,143.4,20.94]
[1720013124402,20.17,143.54,143.41,1.73298012]
[1720013124706,0.17,143.54,143.41,0.34]
[1720013124877,6.6202,143.55,143.42,1.39351045]
[1720013125080,6.6202,143.55,143.43,1.65244011]
[1720013125782,6.6202,143.55,143.44,1.33925202]
[1720013126011,6.6202,143.55,143.45,0.34]
[1720013126305,6.6202,143.55,143.43,0.34]
[1720013126919,6.6202,143.55,143.42,0.34]
[1720013127202,6.6202,143.55,143.43,1.39340435]
[1720013127377,6.6202,143.55,143.44,0.34]
[1720013127582,6.3358,143.6,143.46,20.94]
[1720013127783,6.3358,143.6,143.5,20.94]
[1720013127998,7.277837,143.71,143.52,57.7]
[1720013128206,7.27974953,143.72,143.53,1.73197167]
[1720013128405,36.76,143.75,143.62,6.9628]
[1720013128593,7.27419933,143.74,143.61,6.9631]
[1720013129775,7.27419933,143.74,143.53,0.34]
[1720013130003,7.27419933,143.74,143.53,30.34]
[1720013130298,7.27419933,143.74,143.6,6.9636]
[1720013130701,0.34,143.73,143.53,30.34]
[1720013130911,3.2184,143.72,143.6,6.9636]
[1720013131085,0.34,143.71,143.6,6.9636]
[1720013131489,3.2184,143.7,143.55,20.94]
[1720013131692,3.2184,143.7,143.56,151.28]
[1720013132000,3.2184,143.7,143.64,6.9617]
[1720013133117,3.2184,143.7,143.61,6.9629]
[1720013133283,0.34,143.69,143.61,6.9629]
[1720013133806,0.34,143.69,143.56,30.0]
[1720013134485,0.34,143.69,143.58,6.9646]
[1720013135197,3.2184,143.68,143.57,6.9651]
[1720013135392,0.34,143.67,143.56,6.9655]
[1720013135595,0.34,143.67,143.5,233.12166543]
[1720013135904,0.34,143.67,143.58,6.9646]
[1720013136092,0.34,143.67,143.57,6.9651]
[1720013136483,3.2184,143.66,143.5,218.63694694]
[1720013136708,0.34,143.65,143.54,6.9663]
[1720013137579,0.34,143.65,143.5,218.63694694]
[1720013137580,0.34,143.65,143.55,6.9661]
[1720013137788,0.34,143.65,143.54,6.9666]
[1720013137991,0.34,143.65,143.54,6.9665]
[1720013138205,0.34,143.65,143.56,6.9656]
[1720013139406,0.34,143.65,143.56,6.9653]
[1720013140218,0.34,143.65,143.5,218.63694694]
[1720013140399,3.2184,143.66,143.5,218.63694694]
[1720013140611,3.2184,143.66,143.52,20.94]
[1720013140808,3.2184,143.66,143.53,0.34]
[1720013141185,3.2184,143.66,143.53,30.17]
[1720013141388,3.2184,143.66,143.63,6.962]
[1720013141590,3.2184,143.66,143.54,0.17]
[1720013141895,23.2184,143.66,143.54,0.17]
[1720013142315,3.2184,143.66,143.59,6.9642]
[1720013142491,3.2184,143.66,143.6,6.9637]
[1720013142819,23.2184,143.66,143.53,30.0]
[1720013143211,0.17,143.65,143.53,30.0]
[1720013143588,0.17,143.65,143.59,6.964]
[1720013143801,0.34,143.65,143.58,6.9646]
[1720013144028,17.7435,143.65,143.57,6.9651]
[1720013144197,17.7435,143.65,143.53,30.0]
[1720013144402,6.9625,143.63,143.59,6.9642]
[1720013144627,17.7435,143.65,143.58,6.9646]
[1720013144628,6.9628,143.62,143.58,6.9646]
[1720013144930,6.9633,143.61,143.57,6.9651]
[1720013145113,17.4059,143.63,143.53,30.0]
[1720013145318,6.9648,143.58,143.54,6.9666]
[1720013145534,17.4089,143.61,143.51,36.76]
[1720013145701,0.17,143.6,143.52,30.0]
[1720013146118,6.9649,143.58,143.53,6.9667]
[1720013146321,6.9649,143.58,143.54,6.9666]
[1720013146636,6.9638,143.6,143.56,6.9656]
[1720013147035,0.17,143.61,143.51,36.76]
[1720013147331,6.9635,143.61,143.51,36.76]
[1720013147536,6.9635,143.61,143.56,6.9654]
[1720013147713,17.4056,143.64,143.51,36.76]
[1720013147714,0.17,143.6,143.51,36.76]
[1720013147912,6.9653,143.57,143.53,6.9667]
[1720013148227,6.9653,143.57,143.53,6.967]
[1720013148228,6.9655,143.57,143.53,6.967]
[1720013149404,3.2184,143.58,143.51,36.76]
[1720013149813,0.17,143.57,143.51,36.76]
[1720013150035,0.34,143.57,143.51,36.76]
[1720013151126,0.34,143.57,143.51,43.728]
[1720013151332,0.34,143.57,143.51,36.76]
[1720013184639,6.06290312,143.57,143.44,43.7212]
[1720013185764,20.17,143.56,143.44,43.7212]
[1720013186355,0.17,143.55,143.44,43.7212]
[1720013186987,0.17,143.55,143.45,6.971]
[1720013187977,0.17,143.55,143.44,36.75]
[1720013188468,0.17,143.55,143.45,6.9706]
[1720013189072,7.45632873,143.55,143.45,6.9706]
[1720013189273,20.17,143.54,143.45,6.9706]
[1720013189470,0.17,143.53,143.45,6.9706]
[1720013189645,0.17,143.54,143.45,6.9706]
[1720013189848,0.34,143.55,143.45,6.9706]
[1720013190465,0.34,143.55,143.44,43.7214]
[1720013191777,0.34,143.55,143.44,36.75]
[1720013192174,0.34,143.55,143.44,43.7213]
[1720013192782,0.34,143.55,143.44,36.75]
[1720013193876,6.40290312,143.55,143.44,36.75]
[1720013194177,65.0,143.54,143.44,36.75]
[1720013194379,0.34,143.53,143.44,36.75]
[1720013195657,36.8,143.52,143.44,36.75]
[1720013195982,120.34,143.51,143.44,36.75]
[1720013196151,171.40290312,143.51,143.44,36.75]
[1720013196357,177.78242648,143.51,143.44,36.75]
[1720013196557,6.37952336,143.5,143.44,36.75]
[1720013196776,65.34,143.49,143.44,36.75]
[1720013197669,20.34,143.49,143.44,36.75]
[1720013199874,7.27742559,143.48,143.44,36.75]
[1720013200076,20.34,143.47,143.44,36.75]
[1720013208988,20.0,143.47,143.44,36.75]
[1720013210285,0.34,143.46,143.44,36.75]
[1720013211682,27.61652601,143.46,143.44,36.75]
[1720013211889,7.61652601,143.46,143.44,36.75]
[1720013212086,20.0,143.45,143.44,36.75]
[1720013212266,20.34,143.45,143.44,36.75]
[1720013218100,20.34,143.45,143.44,36.57]
[1720013218101,71.40290312,143.45,143.44,36.57]
[1720013218273,71.40290312,143.45,143.44,36.41]
[1720013218475,71.40290312,143.45,143.44,36.23]
[1720013220002,114.58242648,143.45,143.44,36.05]
[1720013220303,114.58242648,143.45,143.44,35.87]
[1720013220678,214.58242648,143.45,143.44,35.87]
[1720013220878,114.58242648,143.45,143.44,35.87]
[1720013221803,114.58242648,143.45,143.44,28.59330963]
[1720013222179,214.58242648,143.45,143.44,28.59330963]
[1720013223196,214.58242648,143.45,143.36,36.75]
[1720013223197,100.0,143.4,143.36,36.75]
[1720013223497,36.8,143.38,143.36,36.75]
[1720013223707,51.06290312,143.37,143.36,36.75]
[1720013224484,157.86131537,143.37,143.36,36.75]
[1720013224899,157.86131537,143.37,143.36,36.39]
[1720013225107,194.66131537,143.37,143.36,36.39]
[1720013225416,281.08822419,143.37,143.36,7.91]
[1720013225708,100.0,143.33,143.29,0.833238]
[1720013225900,36.8,143.3,143.29,0.833238]
[1720013226082,107.86290312,143.3,143.29,0.833238]
[1720013227207,108.20290312,143.3,143.17,22.3555]
[1720013227409,71.06290312,143.29,143.17,22.3555]
[1720013227787,26.06290312,143.29,143.17,22.3555]
[1720013227980,20.0,143.29,143.18,16.253]
[1720013228201,42.86290312,143.34,143.21,6.9823]
[1720013228510,6.06290312,143.34,143.23,6.1109]
[1720013229195,6.06290312,143.34,143.24,15.1831]
[1720013229384,7.28334196,143.39,143.24,15.1831]
[1720013229582,6.06290312,143.4,143.24,15.1831]
[1720013229796,6.06290312,143.4,143.26,6.9802]
[1720013229992,6.06290312,143.4,143.27,8.37528418]
[1720013230206,6.06290312,143.4,143.26,6.9801]
[1720013230697,6.06290312,143.4,143.24,15.1831]
[1720013231101,36.8,143.38,143.24,15.1831]
[1720013231307,42.86290312,143.38,143.24,15.1831]
[1720013231684,0.17,143.37,143.24,15.1831]
[1720013231890,7.21730114,143.4,143.26,6.4579]
[1720013232116,7.27856994,143.41,143.27,16.42295565]
[1720013232308,36.8,143.42,143.3,6.9779]
[1720013232501,6.06290312,143.44,143.31,1.39501204]
[1720013232806,14.49349125,143.47,143.34,6.4698]
[1720013233113,20.55639437,143.47,143.35,1.39484869]
[1720013233302,20.55639437,143.47,143.34,6.4698]